bitfinex-derivatives/quotes_SOLF0:USTF0_20251020
["timestamp","ask_amount","ask_price","bid_price","bid_amount"]
[1760919806790,5.36652327,184.88,184.71,2.74]
[1760919806986,2.85,184.83,184.71,2.74]
[1760919808996,2.85,184.88,184.74,4.8698]
[1760919809194,2.85,184.88,184.75,2.74]
[1760919809696,2.85,184.88,184.76,4.8694]
[1760919809892,2.85,184.88,184.75,2.74]
[1760919810293,5.36652327,184.85,184.7,51.08]
[1760919810493,5.36652327,184.85,184.7,2.74]
[1760919810694,7.7176,184.84,184.7,2.74]
[1760919811101,2.85,184.84,184.7,2.74]
[1760919811798,5.36652327,184.81,184.7,2.74]
[1760919812190,2.85,184.8,184.66,140.12]
[1760919812789,4.8688,184.79,184.66,4.8721]
[1760919812994,2.85,184.8,184.65,2.74]
[1760919813192,2.85,184.8,184.65,7.6123]
[1760919813396,8.21652327,184.8,184.65,2.74]
[1760919813698,5.36652327,184.83,184.71,4.8708]
[1760919813891,2.85,184.85,184.71,4.8708]
[1760919813892,2.85,184.85,184.71,7.6108]
[1760919814297,4.8675,184.84,184.71,7.6108]
[1760919814700,2.85,184.82,184.71,7.6108]
[1760919815297,2.85,184.82,184.73,4.8702]
[1760919816900,2.85,184.82,184.71,2.74]
[1760919817200,4.8682,184.81,184.71,2.74]
[1760919817400,10.23472327,184.81,184.71,2.74]
[1760919817600,2.85,184.8,184.67,4.8718]
[1760919817900,10.23582327,184.77,184.66,2.74]
[1760919818093,2.85,184.76,184.66,2.74]
[1760919819001,4.8699,184.75,184.66,2.74]
[1760919819400,2.85,184.76,184.66,2.74]
[1760919819705,7.7196,184.76,184.66,2.74]
[1760919819906,2.85,184.76,184.62,7.6131]
[1760919820093,5.36652327,184.75,184.62,7.6131]
[1760919820299,2.85,184.74,184.62,2.74]
[1760919821105,2.85,184.74,184.65,4.8724]
[1760919821300,2.85,184.74,184.62,2.74]
[1760919821604,2.85,184.74,184.66,4.8721]
[1760919821801,8.21652327,184.79,184.66,7.6121]
[1760919822601,8.21652327,184.79,184.68,4.8715]
[1760919822900,8.21652327,184.79,184.66,2.74]
[1760919823120,2.85,184.83,184.72,2.74]
[1760919823403,2.85,184.81,184.63,2.74]
[1760919823804,2.85,184.81,184.7,2.74]
[1760919824005,2.85,184.86,184.7,2.74]
[1760919824200,6.85611416,184.86,184.72,4.8706]
[1760919824601,6.85611416,184.86,184.7,2.74]
[1760919824801,6.85611416,184.86,184.74,2.74]
[1760919826601,6.85611416,184.86,184.75,4.8696]
[1760919827104,6.85611416,184.86,184.74,2.74]
[1760919827304,4.8672,184.85,184.74,7.6099]
[1760919827505,8.87331416,184.85,184.74,7.6099]
[1760919827900,4.00611416,184.85,184.74,7.6099]
[1760919828098,2.85,184.86,184.74,7.6099]
[1760919828099,6.85611416,184.86,184.74,7.6099]
[1760919828510,11.72301416,184.86,184.76,4.8695]
[1760919828811,4.00611416,184.85,184.76,4.8695]
[1760919830406,7.7169,184.86,184.76,4.8695]
[1760919830407,4.00611416,184.84,184.76,4.8695]
[1760919830607,4.00611416,184.85,184.76,4.8695]
[1760919830808,4.00611416,184.84,184.76,4.8695]
[1760919831008,4.00611416,184.85,184.76,4.8695]
[1760919831407,4.00611416,184.84,184.76,4.8695]
[1760919831607,4.00611416,184.83,184.76,4.8695]
[1760919831806,4.00611416,184.85,184.76,4.8695]
[1760919832014,4.00611416,184.84,184.76,4.8695]
[1760919832210,4.00611416,184.85,184.76,4.8695]
[1760919832407,4.00611416,184.84,184.76,4.8695]
[1760919832606,4.00611416,184.85,184.74,2.74]
[1760919832807,2.85,184.86,184.74,2.74]
[1760919833007,17.99271639,184.9,184.8,4.8685]
[1760919833305,4.04288694,184.89,184.78,2.65]
[1760919833504,4.04288694,184.88,184.78,2.65]
[1760919833702,11.80318006,184.87,184.78,2.65]
[1760919833904,4.04288694,184.86,184.72,2.65]
[1760919834108,4.8676,184.84,184.73,4.8701]
[1760919834417,4.04288694,184.83,184.72,2.65]
[1760919834626,2.9,184.85,184.72,2.65]
[1760919834917,4.05307401,184.84,184.71,2.65]
[1760919835117,4.05307401,184.83,184.71,2.65]
[1760919835313,4.05197728,184.82,184.71,2.65]
[1760919835512,2.9,184.85,184.71,2.65]
[1760919835708,4.05795262,184.84,184.71,2.65]
[1760919835911,4.05795262,184.83,184.71,2.65]
[1760919836107,4.05795262,184.82,184.76,7.5193]
[1760919836313,2.9,184.85,184.76,7.5193]
[1760919836517,4.0619405,184.84,184.76,2.65]
[1760919836816,4.86029312,184.88,184.76,2.65]
[1760919837015,4.06210294,184.87,184.76,2.65]
[1760919837212,4.06210294,184.86,184.76,2.65]
[1760919837412,4.06210294,184.85,184.76,2.65]
[1760919837612,4.06210294,184.84,184.78,4.869]
[1760919837811,4.8664,184.88,184.78,4.869]
[1760919838014,4.06297427,184.87,184.78,4.869]
[1760919838217,4.06297427,184.86,184.78,4.869]
[1760919838412,4.06297427,184.85,184.78,4.869]
[1760919838718,4.06297427,184.84,184.78,4.869]
[1760919838914,2.9,184.87,184.78,4.869]
[1760919839214,4.06202129,184.86,184.78,4.869]
[1760919839419,4.06202129,184.85,184.78,4.869]
[1760919839620,4.06202129,184.84,184.78,4.869]
[1760919839818,2.9,184.87,184.78,4.869]
[1760919840020,4.06238862,184.86,184.78,4.869]
[1760919840217,4.06238862,184.85,184.78,4.869]
[1760919840418,4.86029312,184.89,184.7,2.65]
[1760919840715,5.36652327,184.9,184.74,2.65]
[1760919840716,4.06616985,184.88,184.74,2.65]
[1760919840921,7.76029312,184.92,184.74,2.65]
[1760919841116,4.06630741,184.91,184.83,2.65]
[1760919841316,5.36652327,184.94,184.83,2.65]
[1760919841617,4.06750712,184.93,184.83,2.65]
[1760919841812,4.06750712,184.92,184.83,2.65]
[1760919842014,5.36652327,184.94,184.83,2.65]
[1760919842318,2.9,184.96,184.83,2.65]
[1760919842516,4.06704983,184.95,184.83,2.65]
[1760919842716,4.0677773,184.97,184.91,4.8655]
[1760919842916,2.9,185.01,184.91,4.8655]
[1760919843111,4.06784803,185.0,184.91,4.8655]
[1760919843427,4.06784803,185.0,184.89,2.65]
[1760919843428,6.96324338,185.01,184.93,7.5149]
[1760919843714,2.9,185.01,184.93,2.65]
[1760919844014,4.06324338,185.0,184.93,2.65]
[1760919844218,2.9,185.01,184.86,2.65]
[1760919844219,8.26652327,185.01,184.86,2.65]
[1760919844517,8.26652327,184.93,184.78,2.65]
[1760919844717,2.9,184.88,184.78,2.65]
[1760919844916,6.9564774,184.88,184.78,2.65]
[1760919845112,5.36652327,184.85,184.78,2.65]
[1760919845419,5.36652327,184.85,184.72,78.53936124]
[1760919845420,2.9,184.84,184.73,2.65]
[1760919846022,5.36652327,184.83,184.73,2.65]
[1760919846610,5.36652327,184.83,184.73,7.5202]
[1760919846815,5.36652327,184.83,184.72,78.53936124]
[1760919846816,9.42451638,184.83,184.72,78.53936124]
[1760919847016,4.05799311,184.82,184.72,78.53936124]
[1760919847224,9.42451638,184.83,184.72,83.40986124]
[1760919847424,5.36652327,184.83,184.73,2.65]
[1760919847721,4.05822786,184.83,184.73,7.5201]
[1760919847920,8.26652327,184.84,184.73,2.65]
[1760919848320,8.26652327,184.84,184.75,4.8697]
[1760919848913,8.26652327,184.84,184.73,2.65]
[1760919850020,8.26652327,184.84,184.59,140.22]
[1760919850021,2.9,184.8,184.68,2.65]
[1760919850217,2.9,184.75,184.6,2.65]
[1760919850418,4.8693,184.77,184.6,2.65]
[1760919850419,8.26652327,184.71,184.6,2.65]
[1760919850619,8.26652327,184.71,184.6,7.5237]
[1760919850922,2.9,184.7,184.55,50.39]
[1760919851120,2.9,184.66,184.55,2.65]
[1760919851519,2.9,184.66,184.49,2.65]
[1760919851722,2.9,184.6,184.49,2.65]
[1760919852217,5.36652327,184.61,184.43,2.65]
[1760919852426,5.36652327,184.57,184.43,2.65]
[1760919852621,2.86,184.56,184.43,2.65]
[1760919852813,6.52035272,184.68,184.45,2.65]
[1760919852814,8.22652327,184.62,184.45,2.65]
[1760919853325,2.86,184.57,184.45,2.65]
[1760919853718,2.86,184.62,184.45,2.65]
[1760919853922,2.86,184.67,184.51,7.5261]
[1760919854221,2.86,184.67,184.52,2.65]
[1760919854825,2.86,184.67,184.53,6.96]
[1760919855221,2.86,184.67,184.54,20.57]
[1760919855427,2.86,184.67,184.54,2.65]
[1760919856220,2.86,184.67,184.55,4.875]
[1760919856426,2.86,184.67,184.54,2.65]
[1760919856622,2.86,184.67,184.54,7.5253]
[1760919857222,2.86,184.67,184.56,4.8748]
[1760919857919,5.36652327,184.68,184.54,44.81]
[1760919858121,5.36652327,184.68,184.48,2.79]
[1760919858122,5.36652327,184.64,184.48,2.79]
[1760919858321,2.63,184.63,184.49,47.86]
[1760919858722,2.63,184.63,184.5,2.79]
[1760919859828,2.63,184.63,184.53,4.8754]
[1760919860225,2.63,184.63,184.5,2.79]
[1760919860226,2.63,184.63,184.5,8.15652327]
[1760919860529,2.63,184.63,184.51,47.38]
[1760919860830,2.63,184.63,184.51,47.94]
[1760919861527,2.63,184.63,184.52,4.8758]
[1760919861927,2.63,184.63,184.51,11.76]
[1760919862123,2.63,184.63,184.5,2.79]
[1760919863430,2.63,184.63,184.51,52.7961]
[1760919863826,2.63,184.63,184.51,4.8761]
[1760919864027,2.63,184.63,184.54,4.8753]
[1760919864528,112.96137014,184.7,184.6,4.8736]
[1760919864529,2.63,184.68,184.6,4.8736]
[1760919864720,108.09017014,184.7,184.58,2.79]
[1760919864926,2.63,184.73,184.59,2.79]
[1760919865127,2.63,184.78,184.63,2.79]
[1760919865427,2.63,184.78,184.68,4.8715]
[1760919865824,2.63,184.86,184.68,2.79]
[1760919866024,4.04626242,184.89,184.85,5.36652327]
[1760919866230,2.63,185.01,184.86,2.79]
[1760919866432,2.63,185.01,184.89,5.36652327]
[1760919866636,2.63,185.01,184.93,5.36652327]
[1760919866831,2.63,185.01,184.91,8.8136092]
[1760919867035,2.63,185.01,184.91,13.6790092]
[1760919867735,41.1336092,185.17,184.93,4.8648]
[1760919867736,2.63,185.06,184.93,4.8648]
[1760919868330,2.63,185.06,184.91,8.8136092]
[1760919868532,2.63,185.06,184.9,2.79]
[1760919868734,2.63,185.06,184.91,8.8136092]
[1760919868935,2.63,185.11,184.97,4.864]
[1760919869130,2.63,185.11,184.96,11.6036092]
[1760919869330,2.63,185.11,184.97,2.79]
[1760919869935,2.63,185.11,184.97,13.33]
[1760919870137,2.63,185.11,184.97,23.35]
[1760919870440,2.63,185.11,184.97,32.87]
[1760919870828,2.63,185.11,184.97,2.79]
[1760919872734,2.63,185.11,184.97,11.6036092]
[1760919872935,2.63,185.11,184.98,2.79]
[1760919873134,33.26050241,185.17,184.98,2.79]
[1760919873135,2.63,185.16,184.98,2.79]
[1760919873335,2.63,185.16,185.02,2.79]
[1760919874028,0.94043887,185.19,184.96,8.8136092]
[1760919874235,0.94043887,185.19,184.97,12.99]
[1760919874429,2.63,185.18,184.97,12.99]
[1760919874631,2.63,185.15,184.98,2.79]
[1760919876035,7.4893,185.15,184.98,2.79]
[1760919876539,2.63,185.15,184.98,2.79]
[1760919876936,2.63,185.15,184.98,47.17]
[1760919877940,4.8596,185.14,184.99,2.79]
[1760919878636,2.63,185.1,184.91,11.6036092]
[1760919878836,2.63,185.1,184.92,2.79]
[1760919879037,2.63,185.1,184.93,48.06]
[1760919879232,2.63,185.1,184.94,2.79]
[1760919879645,4.8609,185.09,184.94,2.79]
[1760919880444,4.8609,185.09,184.96,2.79]
[1760919880638,4.8609,185.09,184.96,50.81]
[1760919882041,2.63,185.1,184.96,48.02]
[1760919882246,2.63,185.15,184.99,8.8136092]
[1760919882447,2.63,185.15,185.0,2.79]
[1760919882638,4.86,185.13,185.01,48.02]
[1760919883737,2.63,185.11,185.0,2.79]
[1760919883934,2.63,185.11,184.9,140.18]
[1760919883935,2.63,185.11,184.95,2.79]
[1760919884944,4.8621,185.05,184.95,2.79]
[1760919887154,4.8625,185.03,184.95,2.79]
[1760919888340,4.8618,185.06,184.95,2.79]
[1760919889644,4.8623,185.04,184.95,2.79]
[1760919890742,7.4914,185.07,184.95,11.6036092]
[1760919890941,2.63,185.07,184.95,11.6036092]
[1760919891148,4.8636,184.99,184.9,11.7236092]
[1760919891447,2.82,185.0,184.9,2.91]
[1760919891839,4.8643,184.96,184.9,2.91]
[1760919892038,2.65,185.06,184.85,2.66]
[1760919892244,2.65,185.02,184.85,2.66]
[1760919892951,4.8653,184.93,184.85,2.66]
[1760919893150,2.65,184.96,184.85,2.66]
[1760919893451,4.8657,184.91,184.81,8.8136092]
[1760919893850,2.65,184.92,184.81,8.8136092]
[1760919894047,2.65,184.92,184.8,2.66]
[1760919894946,4.8662,184.89,184.8,2.66]
[1760919895849,4.8668,184.87,184.8,2.66]
[1760919896544,4.866,184.9,184.8,2.66]
[1760919896850,4.866,184.9,184.77,56.6536092]
[1760919896851,2.65,185.0,184.86,2.66]
[1760919897541,2.65,185.0,184.89,8.8136092]
[1760919897742,4.8642,184.97,184.89,8.8136092]
[1760919898255,4.8647,184.95,184.89,8.8136092]
[1760919898453,2.65,184.96,184.86,2.66]
[1760919898949,4.8657,184.91,184.86,2.66]
[1760919899155,4.8657,184.91,184.81,11.4736092]
[1760919899556,2.65,184.92,184.81,11.4736092]
[1760919900152,4.8663,184.89,184.81,11.4736092]
[1760919900653,4.8668,184.87,184.81,11.4736092]
[1760919900858,3.94805531,184.99,184.76,59.2536092]
[1760919901160,2.65,184.98,184.77,2.66]
[1760919901352,2.65,184.89,184.77,2.66]
[1760919901748,2.65,184.88,184.7,2.66]
[1760919901952,2.65,184.88,184.67,8.8136092]
[1760919901953,2.65,184.87,184.67,8.8136092]
[1760919902153,3.964145,184.88,184.67,8.8136092]
[1760919902351,4.869,184.79,184.68,2.66]
[1760919902551,2.65,184.81,184.71,8.8136092]
[1760919902751,2.65,184.87,184.72,2.66]
[1760919902948,4.8678,184.83,184.72,2.66]
[1760919903356,2.65,184.87,184.72,2.66]
[1760919903653,4.8688,184.79,184.72,2.66]
[1760919904461,4.8681,184.82,184.72,2.66]
[1760919904649,2.65,184.87,184.72,2.66]
[1760919904850,3.964145,184.93,184.74,8.8136092]
[1760919905052,2.65,184.91,184.72,2.66]
[1760919905254,11.06716564,184.93,184.75,2.66]
[1760919905559,2.65,184.84,184.71,2.66]
[1760919905959,4.8679,184.83,184.75,2.66]
[1760919906158,2.65,184.89,184.75,2.66]
[1760919906354,2.65,184.89,184.78,8.8136092]
[1760919906961,2.65,184.89,184.75,2.66]
[1760919906962,4.8678,184.83,184.75,2.66]
[1760919907757,2.65,184.89,184.75,2.66]
[1760919908465,3.964145,184.88,184.75,2.66]
[1760919908664,4.8674,184.85,184.79,2.66]
[1760919908864,4.8674,184.85,184.78,8.8136092]
[1760919909067,2.65,184.89,184.78,11.4736092]
[1760919909364,8.87104773,184.88,184.78,11.4736092]
[1760919909563,4.00444773,184.87,184.79,2.66]
[1760919909961,9.17035272,184.94,184.82,8.8136092]
[1760919910164,4.01332569,184.93,184.86,8.8136092]
[1760919910360,4.01332569,184.92,184.86,8.8136092]
[1760919910668,4.01332569,184.98,184.87,2.66]
[1760919910858,4.8636,184.99,184.87,2.66]
[1760919911060,4.01930095,184.98,184.87,2.66]
[1760919911364,4.01930095,184.97,184.87,2.66]
[1760919911560,4.01930095,184.96,184.87,2.66]
[1760919911764,9.17035272,185.03,184.87,2.66]
[1760919912069,4.8636,184.99,184.87,2.66]
[1760919912272,4.01901296,184.98,184.87,2.66]
[1760919912466,4.01901296,184.97,184.87,2.66]
[1760919912669,4.01901296,185.02,184.91,2.76]
[1760919912969,6.67601109,185.07,184.91,2.76]
[1760919913166,4.8623,185.04,184.91,2.76]
[1760919913372,6.67601109,185.03,184.91,2.76]
[1760919913566,2.67,185.01,184.85,2.76]
[1760919913873,2.67,184.99,184.85,2.76]
[1760919914174,4.8649,184.94,184.85,2.76]
[1760919914366,4.00601109,184.96,184.85,2.76]
[1760919914567,2.67,184.94,184.81,11.5736092]
[1760919914763,4.8654,184.92,184.81,11.5736092]
[1760919915166,2.67,184.94,184.82,2.76]
[1760919915669,6.67495799,184.94,184.82,2.76]
[1760919915873,2.67,184.94,184.82,2.76]
[1760919916267,4.00495799,184.93,184.82,2.76]
[1760919916473,2.67,184.94,184.82,2.76]
[1760919916668,2.67,184.9,184.77,8.8136092]
[1760919916875,4.00495799,184.89,184.77,8.8136092]
[1760919917066,7.5359,184.9,184.78,2.65]
[1760919917670,2.89,184.96,184.78,2.65]
[1760919917977,4.00455454,184.95,184.82,2.65]
[1760919918172,4.00455454,184.95,184.83,47.98]
[1760919918375,2.89,185.01,184.86,2.65]
[1760919918579,2.89,185.01,184.9,2.65]
[1760919918874,4.00743607,185.04,184.9,2.65]
[1760919919073,2.89,185.06,184.9,2.65]
[1760919919270,2.89,185.06,184.94,2.65]
[1760919919868,7.7518,185.06,184.94,2.65]
[1760919920074,4.00821832,185.05,184.94,2.65]
[1760919920380,2.89,185.06,184.94,2.65]
[1760919920880,2.89,185.08,184.87,2.65]
[1760919921081,2.89,185.06,184.9,18.38]
[1760919921379,4.8621,185.05,184.91,2.65]
[1760919921572,4.8621,185.05,184.92,18.8136092]
[1760919921770,4.8621,185.05,184.92,29.1736092]
[1760919921968,2.89,185.02,184.91,2.65]
[1760919923276,4.8636,184.99,184.84,13.6809092]
[1760919923474,2.89,185.02,184.86,2.65]
[1760919923873,4.8641,184.97,184.86,2.65]
[1760919924079,4.8641,184.97,184.57,326.44082757]
[1760919924080,2.89,184.98,184.8,8.8136092]
[1760919924379,2.89,185.0,184.81,2.65]
[1760919924678,8.49615827,185.02,184.81,2.65]
[1760919924679,2.89,184.92,184.81,2.65]
[1760919925076,2.89,184.92,184.76,2.65]
[1760919927176,4.866,184.9,184.76,2.65]
[1760919927571,4.01080552,184.91,184.76,2.65]
[1760919927874,4.8666,184.88,184.76,2.65]
[1760919928681,2.89,184.89,184.76,2.65]
[1760919930179,4.8664,184.88,184.76,2.65]
[1760919931174,7.7575,184.84,184.74,108.73919877]
[1760919932078,4.8681,184.82,184.74,108.73919877]
[1760919932481,4.85962812,184.89,184.74,108.73919877]
[1760919932482,2.89,184.89,184.75,2.65]
[1760919933381,4.867,184.86,184.75,2.65]
[1760919933583,2.89,184.87,184.75,2.65]
[1760919934382,4.8678,184.83,184.75,2.65]
[1760919934581,4.8678,184.83,184.74,108.73919877]
[1760919934582,2.89,184.83,184.74,108.73919877]
[1760919935081,4.01785351,184.87,184.74,108.73919877]
[1760919935082,2.89,184.78,184.74,108.73919877]
[1760919935283,2.89,184.78,184.7,50.43]
[1760919935486,2.89,184.78,184.7,2.65]
[1760919935785,4.8693,184.77,184.7,2.65]
[1760919936185,2.89,184.78,184.7,2.65]
[1760919936788,2.89,184.78,184.65,12.88630842]
[1760919936982,2.89,184.78,184.65,2.65]
[1760919937184,2.89,184.78,184.66,47.74]
[1760919937682,2.89,184.83,184.68,2.65]
[1760919938592,2.89,184.83,184.69,47.74]
[1760919938789,2.89,184.83,184.71,2.65]
[1760919938986,2.89,184.83,184.72,2.65]
[1760919939294,2.89,184.83,184.72,8.01390842]
[1760919939894,4.868,184.82,184.72,50.37]
[1760919940083,2.89,184.83,184.72,50.37]
[1760919940491,2.89,184.83,184.72,60.60450842]
[1760919940890,2.89,184.83,184.72,50.37]
[1760919941288,2.89,184.89,184.75,5.36390842]
[1760919941488,2.89,184.89,184.76,2.65]
[1760919943001,2.89,184.89,184.79,4.8687]
[1760919943503,2.89,184.89,184.79,7.5187]
[1760919943700,76.82226023,184.9,184.8,47.7]
[1760919944092,76.82226023,184.9,184.79,8.01390842]
[1760919944298,76.82226023,184.9,184.8,33.3]
[1760919945001,76.82226023,184.9,184.82,4.868]
[1760919946299,2.89,184.94,184.84,4.8674]
[1760919946602,2.89,184.94,184.83,2.65]
[1760919947190,2.89,184.94,184.83,8.01390842]
[1760919947390,2.77,184.99,184.84,2.91]
[1760919948104,2.77,184.99,184.88,4.8664]
[1760919948601,2.77,185.03,184.88,2.91]
[1760919949105,2.77,185.03,184.89,44.4]
[1760919949400,2.77,185.03,184.88,2.91]
[1760919949600,4.8627,185.02,184.91,4.8655]
[1760919950096,4.8633,185.0,184.88,2.91]
[1760919950298,2.77,184.98,184.85,16.48]
[1760919950502,2.77,184.98,184.84,2.91]
[1760919950698,2.77,184.98,184.84,7.7773]
[1760919950904,2.77,184.99,184.84,7.7773]
[1760919951093,2.77,184.98,184.84,7.7773]
[1760919951296,4.03209149,185.0,184.84,7.7773]
[1760919951498,2.77,184.98,184.84,7.7773]
[1760919951893,2.77,184.99,184.84,7.7773]
[1760919952098,2.77,184.96,184.84,7.7773]
[1760919953705,2.77,184.96,184.84,2.91]
[1760919954405,2.77,184.94,184.84,2.91]
[1760919954906,2.77,184.94,184.84,7.7774]
[1760919955703,2.77,184.94,184.86,4.8668]
[1760919955903,2.77,185.02,184.84,2.91]
[1760919956104,8.13390842,185.02,184.84,2.91]
[1760919956306,2.77,185.0,184.88,4.8663]
[1760919956500,8.13390842,184.98,184.84,2.91]
[1760919956906,2.77,184.96,184.87,4.8666]
[1760919958006,2.77,184.96,184.84,7.7773]
[1760919958805,2.77,184.96,184.86,4.8669]
[1760919959006,2.77,184.96,184.84,2.91]
[1760919960308,2.77,185.0,184.84,2.91]
[1760919960913,2.77,185.0,184.82,44.78390842]
[1760919960914,7.6333,185.0,184.89,4.8659]
[1760919961412,6.80430337,184.99,184.89,4.8659]
[1760919962312,7.6338,184.98,184.89,4.8659]
[1760919962508,2.77,184.97,184.89,4.8659]
[1760919962808,2.77,184.97,184.79,46.7]
[1760919962809,2.77,184.96,184.85,4.8669]
[1760919963013,2.77,184.96,184.84,2.91]
[1760919964311,2.77,184.96,184.86,4.8669]
[1760919964512,2.77,184.96,184.84,2.91]
[1760919964713,6.80394037,184.96,184.8,2.91]
[1760919965109,4.8651,184.93,184.82,4.8677]
[1760919965316,2.77,184.92,184.82,4.8677]
[1760919965516,6.80560297,184.92,184.72,5.36390842]
[1760919965717,5.36390842,184.93,184.7,9.7422]
[1760919965718,2.77,184.87,184.73,2.91]
[1760919966118,4.8672,184.86,184.75,4.8696]
[1760919966415,2.77,184.85,184.75,4.8696]
[1760919967117,2.77,184.85,184.78,4.869]
[1760919968314,4.03699336,184.89,184.8,4.8685]
[1760919968515,30.92,184.97,184.78,2.91]
[1760919968516,2.77,184.94,184.79,2.91]
[1760919969522,2.77,184.9,184.75,5.36390842]
[1760919969820,6.81135081,184.9,184.77,4.8691]
[1760919970015,2.77,184.89,184.77,4.8691]
[1760919971016,2.77,184.88,184.74,7.7799]
[1760919971313,4.04135081,184.89,184.74,2.91]
[1760919971314,4.8667,184.87,184.74,2.91]
[1760919971516,2.77,184.89,184.76,2.91]
[1760919972011,2.77,184.89,184.8,4.8684]
[1760919972414,6.80934046,184.89,184.76,2.91]
[1760919972613,2.77,184.89,184.76,2.91]
[1760919972818,2.69,184.9,184.76,2.91]
[1760919973018,8.92266044,184.9,184.73,5.36390842]
[1760919973221,2.69,184.88,184.73,5.36390842]
[1760919973409,2.69,184.88,184.75,4.8698]
[1760919973410,7.5575,184.84,184.75,4.8698]
[1760919975619,7.5575,184.84,184.73,5.36390842]
[1760919975620,7.5575,184.84,184.73,10.23420842]
[1760919976009,7.5575,184.84,184.72,2.75]
[1760919976010,2.69,184.84,184.72,2.75]
[1760919976512,2.69,184.81,184.72,2.75]
[1760919976716,2.69,184.81,184.67,2.75]
[1760919976916,6.72542652,184.81,184.67,2.75]
[1760919977115,6.72542652,184.81,184.64,5.36390842]
[1760919977116,2.79,184.77,184.64,4.8725]
[1760919977415,2.79,184.77,184.62,8.26390842]
[1760919977614,7.6609,184.71,184.62,2.9]
[1760919977822,7.6609,184.71,184.58,4.8741]
[1760919977823,2.79,184.71,184.58,4.8741]
[1760919978024,4.8715,184.69,184.58,4.8741]
[1760919978216,4.8715,184.69,184.57,2.9]
[1760919978413,2.79,184.69,184.57,2.9]
[1760919978823,2.79,184.72,184.53,4.8754]
[1760919979017,8.90650965,184.73,184.53,4.8754]
[1760919979223,2.79,184.69,184.53,4.8754]
[1760919979420,2.79,184.69,184.56,8.26390842]
[1760919979625,2.79,184.69,184.57,2.9]
[1760919979925,2.79,184.73,184.57,2.9]
[1760919980826,7.67331998,184.73,184.57,2.9]
[1760919981024,4.8718,184.68,184.57,2.9]
[1760919981222,7.6618,184.68,184.57,2.9]
[1760919981428,2.79,184.68,184.57,2.9]
[1760919982423,2.79,184.68,184.58,4.8742]
[1760919982625,30.34331998,184.76,184.57,2.9]
[1760919982626,2.79,184.73,184.57,2.9]
[1760919982826,2.79,184.73,184.61,2.9]
[1760919983025,2.79,184.77,184.66,7.7721]
[1760919983426,4.8684,184.81,184.66,2.9]
[1760919983932,4.8684,184.81,184.68,4.8715]
[1760919984129,4.8684,184.81,184.58,5.36390842]
[1760919984130,8.15390842,184.78,184.61,2.9]
[1760919984336,2.79,184.76,184.61,2.9]
[1760919984734,4.8705,184.73,184.61,2.9]
[1760919985830,4.871,184.71,184.58,7.7741]
[1760919988134,4.871,184.71,184.6,4.8737]
[1760919989448,4.871,184.71,184.58,2.9]